[Event "Titled Tuesday Blitz May 10 Early 2022"]
[White "Silvestre, Christian"]
[Black "Melikyan, Gnel"]
[WhiteFideId "30956269"]
[BlackFideId "54109990"]
[WhiteElo "2376"]
[BlackElo "1772"]
[Result "0-1"]
[Round "01"]
[TimeControl "180+1"]
[Date "2022.05.11"]
[WhiteClock "0:00:13"]
[BlackClock "0:00:16"]

1. Nf3 {[%clk 0:02:57]}  Nf6 {[%clk 0:02:58]} 2. d4 {[%clk 0:02:56]}  g6 {[%clk 0:02:57]} 3. g3 {[%clk 0:02:55]}  Bg7 {[%clk 0:02:58]} 4. Bg2 {[%clk 0:02:55]}  O-O {[%clk 0:02:59]} 5. O-O {[%clk 0:02:55]}  d6 {[%clk 0:02:59]} 6. c4 {[%clk 0:02:55]}  c6 {[%clk 0:03:00]} 7. Nc3 {[%clk 0:02:55]}  Qb6 {[%clk 0:03:00]} 8. Qb3 {[%clk 0:02:51]}  Na6 {[%clk 0:02:59]} 9. Qxb6 {[%clk 0:02:50]}  axb6 {[%clk 0:02:59]} 10. b3 {[%clk 0:02:50]}  Nb4 {[%clk 0:02:41]} 11. Bb2 {[%clk 0:02:46]}  c5 {[%clk 0:02:34]} 12. a3 {[%clk 0:02:21]}  Nc2 {[%clk 0:02:27]} 13. Rac1 {[%clk 0:01:54]}  Nxd4 {[%clk 0:02:08]} 14. Nxd4 {[%clk 0:01:53]}  cxd4 {[%clk 0:02:09]} 15. Nb5 {[%clk 0:01:52]}  Nd7 {[%clk 0:01:57]} 16. Rfd1 {[%clk 0:01:41]}  Nc5 {[%clk 0:01:55]} 17. Nxd4 {[%clk 0:01:06]}  Nxb3 {[%clk 0:01:41]} 18. Rc2 {[%clk 0:00:48]}  Nxd4 {[%clk 0:01:40]} 19. Bxd4 {[%clk 0:00:49]}  Bxd4 {[%clk 0:01:39]} 20. Rxd4 {[%clk 0:00:50]}  Rxa3 {[%clk 0:01:39]} 21. f4 {[%clk 0:00:45]}  Rb3 {[%clk 0:01:14]} 22. Rd3 {[%clk 0:00:39]}  Rb4 {[%clk 0:01:05]} 23. Bd5 {[%clk 0:00:29]}  Rd8 {[%clk 0:00:51]} 24. Rdd2 {[%clk 0:00:23]}  Be6 {[%clk 0:00:40]} 25. Rb2 {[%clk 0:00:20]}  Rxb2 {[%clk 0:00:29]} 26. Rxb2 {[%clk 0:00:21]}  Bxd5 {[%clk 0:00:24]} 27. cxd5 {[%clk 0:00:21]}  Rc8 {[%clk 0:00:21]} 28. Rxb6 {[%clk 0:00:21]}  Rc7 {[%clk 0:00:21]} 29. Kf2 {[%clk 0:00:21]}  f5 {[%clk 0:00:21]} 30. Kf3 {[%clk 0:00:20]}  Kf7 {[%clk 0:00:21]} 31. e3 {[%clk 0:00:20]}  Kf6 {[%clk 0:00:21]} 32. h3 {[%clk 0:00:21]}  h5 {[%clk 0:00:21]} 33. g4 {[%clk 0:00:19]}  hxg4+ {[%clk 0:00:21]} 34. hxg4 {[%clk 0:00:20]}  fxg4+ {[%clk 0:00:22]} 35. Kxg4 {[%clk 0:00:21]}  Rc5 {[%clk 0:00:20]} 36. e4 {[%clk 0:00:21]}  Rc4 {[%clk 0:00:20]} 37. Kf3 {[%clk 0:00:20]}  Rc3+ {[%clk 0:00:21]} 38. Kg4 {[%clk 0:00:20]}  Re3 {[%clk 0:00:20]} 39. Rb4 {[%clk 0:00:18]}  Kf7 {[%clk 0:00:19]} 40. f5 {[%clk 0:00:16]}  Kf6 {[%clk 0:00:19]} 41. fxg6 {[%clk 0:00:16]}  Kxg6 {[%clk 0:00:19]} 42. Kf4 {[%clk 0:00:16]}  Ra3 {[%clk 0:00:17]} 43. Rxb7 {[%clk 0:00:16]}  Kf6 {[%clk 0:00:17]} 44. Rb2 {[%clk 0:00:15]}  Ra1 {[%clk 0:00:18]} 45. Rf2 {[%clk 0:00:14]}  Re1 {[%clk 0:00:18]} 46. Rf3 {[%clk 0:00:14]}  Re2 {[%clk 0:00:18]} 47. Rh3 {[%clk 0:00:11]}  Rg2 {[%clk 0:00:17]} 48. Ke3 {[%clk 0:00:09]}  Rg5 {[%clk 0:00:17]} 49. Kd4 {[%clk 0:00:09]}  Rg4 {[%clk 0:00:16]} 50. Re3 {[%clk 0:00:10]}  Kg5 {[%clk 0:00:16]} 51. Rf3 {[%clk 0:00:09]}  Rf4 {[%clk 0:00:16]} 52. Rg3+ {[%clk 0:00:08]}  Kf6 {[%clk 0:00:15]} 53. Rh3 {[%clk 0:00:07]}  Rf1 {[%clk 0:00:15]} 54. Rh6+ {[%clk 0:00:07]}  Kf7 {[%clk 0:00:15]} 55. Re6 {[%clk 0:00:07]}  Rf6 {[%clk 0:00:14]} 56. Rxf6+ {[%clk 0:00:06]}  Kxf6 {[%clk 0:00:15]} 57. Kd3 {[%clk 0:00:05]}  Kg5 {[%clk 0:00:14]} 58. Ke3 {[%clk 0:00:02]}  Kg4 {[%clk 0:00:14]} 59. Kd4 {[%clk 0:00:03]}  Kf4 {[%clk 0:00:15]} 60. Kd3 {[%clk 0:00:03]}  Kg4 {[%clk 0:00:12]} 61. Kd4 {[%clk 0:00:01]}  Kf3 {[%clk 0:00:12]} 62. Kd3 {[%clk 0:00:01]}  Kf2 {[%clk 0:00:11]} 63. Kd4 {[%clk 0:00:02]}  Ke2 {[%clk 0:00:11]} 64. e5 {[%clk 0:00:02]}  Kf3 {[%clk 0:00:11]} 65. exd6 {[%clk 0:00:02]}  exd6 {[%clk 0:00:12]} 66. Kc4 {[%clk 0:00:03]}  Ke4 {[%clk 0:00:13]} 67. Kc3 {[%clk 0:00:02]}  Ke5 {[%clk 0:00:13]} 68. Kd3 {[%clk 0:00:03]}  Kxd5 {[%clk 0:00:13]} 69. Kc3 {[%clk 0:00:04]}  Ke4 {[%clk 0:00:13]} 70. Kd2 {[%clk 0:00:04]}  Kd4 {[%clk 0:00:14]} 71. Ke1 {[%clk 0:00:04]}  Ke3 {[%clk 0:00:13]} 72. Kd1 {[%clk 0:00:05]}  d5 {[%clk 0:00:13]} 73. Kc2 {[%clk 0:00:06]}  d4 {[%clk 0:00:12]} 74. Kd1 {[%clk 0:00:07]}  Kd3 {[%clk 0:00:13]} 75. Ke1 {[%clk 0:00:08]}  Kc2 {[%clk 0:00:13]} 76. Ke2 {[%clk 0:00:07]}  d3+ {[%clk 0:00:14]} 77. Ke3 {[%clk 0:00:08]}  d2 {[%clk 0:00:15]} 78. Ke4 {[%clk 0:00:09]}  d1=Q {[%clk 0:00:15]} 79. Ke5 {[%clk 0:00:10]}  Kd3 {[%clk 0:00:16]} 80. Ke6 {[%clk 0:00:11]}  Ke4 {[%clk 0:00:16]} 81. Kf6 {[%clk 0:00:12]}  Qd6+ {[%clk 0:00:16]} 82. Kf7 {[%clk 0:00:11]}  Kf5 {[%clk 0:00:16]} 83. Ke8 {[%clk 0:00:12]}  Qc7 {[%clk 0:00:16]} 84. Kf8 {[%clk 0:00:12]}  Kf6 {[%clk 0:00:16]} 85. Kg8 {[%clk 0:00:13]}  Qg7# {[%clk 0:00:16]} 0-1


[Site "https://www.chess.com"]

[Event "Titled Tuesday Blitz May 10 Early 2022"]
[White "Skliarov, Viktor"]
[Black "Kashefi, Amir Hosein"]
[WhiteFideId "14106736"]
[BlackFideId "12557935"]
[WhiteElo "2229"]
[BlackElo "2005"]
[Result "1-0"]
[Round "01"]
[TimeControl "180+1"]
[Date "2022.05.11"]
[WhiteClock "0:00:15"]
[BlackClock "0:00:16"]

1. e4 {[%clk 0:02:54]}  c5 {[%clk 0:02:43]} 2. Nf3 {[%clk 0:02:54]}  g6 {[%clk 0:02:42]} 3. c3 {[%clk 0:02:53]}  Bg7 {[%clk 0:02:41]} 4. d4 {[%clk 0:02:53]}  cxd4 {[%clk 0:02:39]} 5. cxd4 {[%clk 0:02:54]}  d5 {[%clk 0:02:26]} 6. e5 {[%clk 0:02:54]}  Nc6 {[%clk 0:02:24]} 7. Nc3 {[%clk 0:02:53]}  Nh6 {[%clk 0:02:22]} 8. Bb5 {[%clk 0:02:48]}  O-O {[%clk 0:02:21]} 9. O-O {[%clk 0:02:44]}  Bg4 {[%clk 0:02:20]} 10. Bxc6 {[%clk 0:02:42]}  bxc6 {[%clk 0:02:20]} 11. h3 {[%clk 0:02:43]}  Bxf3 {[%clk 0:02:20]} 12. Qxf3 {[%clk 0:02:42]}  Nf5 {[%clk 0:02:18]} 13. Rd1 {[%clk 0:02:23]}  e6 {[%clk 0:02:15]} 14. g4 {[%clk 0:01:56]}  Nh4 {[%clk 0:02:09]} 15. Qg3 {[%clk 0:01:51]}  g5 {[%clk 0:02:08]} 16. f4 {[%clk 0:01:36]}  h6 {[%clk 0:02:07]} 17. Na4 {[%clk 0:01:29]}  f6 {[%clk 0:02:03]} 18. Nc5 {[%clk 0:01:22]}  fxe5 {[%clk 0:01:49]} 19. dxe5 {[%clk 0:00:55]}  Qb6 {[%clk 0:01:40]} 20. Qf2 {[%clk 0:00:31]}  Ng6 {[%clk 0:01:32]} 21. Nxe6 {[%clk 0:00:26]}  Qxf2+ {[%clk 0:01:31]} 22. Kxf2 {[%clk 0:00:27]}  Rf7 {[%clk 0:00:54]} 23. Nxg7 {[%clk 0:00:27]}  Kxg7 {[%clk 0:00:55]} 24. f5 {[%clk 0:00:28]}  Nxe5 {[%clk 0:00:53]} 25. Be3 {[%clk 0:00:28]}  Nc4 {[%clk 0:00:44]} 26. Bd4+ {[%clk 0:00:28]}  Kg8 {[%clk 0:00:44]} 27. b3 {[%clk 0:00:29]}  Nd6 {[%clk 0:00:43]} 28. Rac1 {[%clk 0:00:27]}  Rc8 {[%clk 0:00:42]} 29. Kf3 {[%clk 0:00:24]}  Ne4 {[%clk 0:00:40]} 30. Bg1 {[%clk 0:00:19]}  a5 {[%clk 0:00:35]} 31. Rxd5 {[%clk 0:00:18]}  cxd5 {[%clk 0:00:29]} 32. Rxc8+ {[%clk 0:00:18]}  Rf8 {[%clk 0:00:14]} 33. Rxf8+ {[%clk 0:00:17]}  Kxf8 {[%clk 0:00:15]} 34. Bb6 {[%clk 0:00:17]}  a4 {[%clk 0:00:15]} 35. bxa4 {[%clk 0:00:16]}  Nd2+ {[%clk 0:00:15]} 36. Ke2 {[%clk 0:00:15]}  Nc4 {[%clk 0:00:16]} 37. a5 {[%clk 0:00:14]}  Nxb6 {[%clk 0:00:16]} 38. axb6 {[%clk 0:00:15]} 1-0


[Site "https://www.chess.com"]

[Event "Titled Tuesday Blitz May 10 Early 2022"]
[White "Soucek, Petr"]
[Black "Hnydiuk, Aleksander"]
[WhiteFideId "23715170"]
[BlackFideId "1109057"]
[WhiteElo "1979"]
[BlackElo "2374"]
[Result "0-1"]
[Round "01"]
[TimeControl "180+1"]
[Date "2022.05.11"]
[WhiteClock "0:00:03"]
[BlackClock "0:01:26"]

1. e4 {[%clk 0:02:59]}  Nf6 {[%clk 0:02:58]} 2. e5 {[%clk 0:02:56]}  Nd5 {[%clk 0:02:58]} 3. c4 {[%clk 0:02:55]}  Nb6 {[%clk 0:02:58]} 4. d4 {[%clk 0:02:56]}  d6 {[%clk 0:02:58]} 5. d5 {[%clk 0:02:56]}  dxe5 {[%clk 0:02:52]} 6. Nf3 {[%clk 0:02:37]}  e6 {[%clk 0:02:49]} 7. Nc3 {[%clk 0:02:30]}  exd5 {[%clk 0:02:46]} 8. cxd5 {[%clk 0:02:31]}  Bb4 {[%clk 0:02:44]} 9. Bc4 {[%clk 0:02:13]}  O-O {[%clk 0:02:09]} 10. Bb3 {[%clk 0:02:10]}  Bg4 {[%clk 0:02:09]} 11. h3 {[%clk 0:02:05]}  Bh5 {[%clk 0:02:09]} 12. g4 {[%clk 0:02:01]}  Bg6 {[%clk 0:02:09]} 13. O-O {[%clk 0:01:58]}  N8d7 {[%clk 0:02:05]} 14. Re1 {[%clk 0:01:39]}  e4 {[%clk 0:01:53]} 15. Nd4 {[%clk 0:01:37]}  Nc5 {[%clk 0:01:50]} 16. Bd2 {[%clk 0:00:46]}  Nd3 {[%clk 0:01:43]} 17. Rxe4 {[%clk 0:00:34]}  Bxc3 {[%clk 0:01:37]} 18. Bxc3 {[%clk 0:00:21]}  Bxe4 {[%clk 0:01:36]} 19. f3 {[%clk 0:00:15]}  Qh4 {[%clk 0:01:31]} 20. Kg2 {[%clk 0:00:03]}  Nf4+ {[%clk 0:01:26]} 0-1


[Site "https://www.chess.com"]

[Event "Titled Tuesday Blitz May 10 Early 2022"]
[White "Srihari L R"]
[Black "Mortazavi, Ali"]
[WhiteFideId "46617116"]
[BlackFideId "401323"]
[WhiteElo "2121"]
[BlackElo "2339"]
[Result "0-1"]
[Round "01"]
[TimeControl "180+1"]
[Date "2022.05.11"]
[WhiteClock "0:01:55"]
[BlackClock "0:01:23"]

1. c4 {[%clk 0:02:56]}  Nf6 {[%clk 0:02:59]} 2. Nc3 {[%clk 0:02:55]}  g6 {[%clk 0:03:00]} 3. g3 {[%clk 0:02:51]}  d6 {[%clk 0:03:00]} 4. Bg2 {[%clk 0:02:52]}  Bg7 {[%clk 0:03:01]} 5. d4 {[%clk 0:02:51]}  O-O {[%clk 0:03:01]} 6. e3 {[%clk 0:02:49]}  Nbd7 {[%clk 0:03:02]} 7. Nge2 {[%clk 0:02:49]}  e5 {[%clk 0:03:03]} 8. O-O {[%clk 0:02:49]}  Re8 {[%clk 0:03:03]} 9. dxe5 {[%clk 0:02:49]}  dxe5 {[%clk 0:02:58]} 10. b3 {[%clk 0:02:48]}  c6 {[%clk 0:02:58]} 11. Ba3 {[%clk 0:02:48]}  Qa5 {[%clk 0:02:52]} 12. Bb2 {[%clk 0:02:46]}  e4 {[%clk 0:02:39]} 13. a3 {[%clk 0:02:44]}  Qf5 {[%clk 0:02:22]} 14. Nd4 {[%clk 0:02:43]}  Qg5 {[%clk 0:02:22]} 15. b4 {[%clk 0:02:40]}  Ne5 {[%clk 0:02:16]} 16. Nxe4 {[%clk 0:02:37]}  Nxe4 {[%clk 0:02:15]} 17. Bxe4 {[%clk 0:02:38]}  Nxc4 {[%clk 0:02:14]} 18. Nf3 {[%clk 0:02:23]}  Nxb2 {[%clk 0:02:05]} 19. Nxg5 {[%clk 0:02:22]}  Nxd1 {[%clk 0:02:05]} 20. Raxd1 {[%clk 0:02:15]}  f6 {[%clk 0:01:51]} 21. Nf3 {[%clk 0:02:02]}  Rxe4 {[%clk 0:01:50]} 22. Rd8+ {[%clk 0:02:02]}  Kf7 {[%clk 0:01:51]} 23. Rfd1 {[%clk 0:02:02]}  Re8 {[%clk 0:01:35]} 24. Rxe8 {[%clk 0:02:02]}  Kxe8 {[%clk 0:01:34]} 25. Nd4 {[%clk 0:02:02]}  Ke7 {[%clk 0:01:30]} 26. f3 {[%clk 0:01:59]}  f5 {[%clk 0:01:28]} 27. Nb3 {[%clk 0:01:59]}  b6 {[%clk 0:01:25]} 28. Kf2 {[%clk 0:01:56]}  Be6 {[%clk 0:01:25]} 29. Nd2 {[%clk 0:01:55]}  Rd8 {[%clk 0:01:24]} 30. Ke2 {[%clk 0:01:55]}  Bc3 {[%clk 0:01:23]} 0-1


[Site "https://www.chess.com"]

[Event "Titled Tuesday Blitz May 10 Early 2022"]
[White "Suder, Jakub"]
[Black "Valle Maytin, Luis Enrique"]
[WhiteFideId "1195310"]
[BlackFideId "3503666"]
[WhiteElo "2058"]
[BlackElo "2287"]
[Result "1-0"]
[Round "01"]
[TimeControl "180+1"]
[Date "2022.05.11"]
[WhiteClock "0:01:14"]
[BlackClock "0:01:33"]

1. d4 {[%clk 0:02:59]}  Nf6 {[%clk 0:02:59]} 2. c4 {[%clk 0:02:52]}  e6 {[%clk 0:02:59]} 3. Nc3 {[%clk 0:02:52]}  Bb4 {[%clk 0:02:59]} 4. f3 {[%clk 0:02:53]}  O-O {[%clk 0:02:54]} 5. a3 {[%clk 0:02:52]}  Bxc3+ {[%clk 0:02:54]} 6. bxc3 {[%clk 0:02:53]}  c5 {[%clk 0:02:53]} 7. e4 {[%clk 0:02:53]}  b6 {[%clk 0:02:50]} 8. Bd3 {[%clk 0:02:52]}  Ba6 {[%clk 0:02:49]} 9. f4 {[%clk 0:02:49]}  Nc6 {[%clk 0:02:48]} 10. Nf3 {[%clk 0:02:47]}  d5 {[%clk 0:02:41]} 11. e5 {[%clk 0:02:37]}  dxc4 {[%clk 0:02:35]} 12. Bc2 {[%clk 0:02:28]}  Nd5 {[%clk 0:02:35]} 13. Bxh7+ {[%clk 0:02:28]}  Kh8 {[%clk 0:02:31]} 14. Ng5 {[%clk 0:02:05]}  g6 {[%clk 0:02:23]} 15. Qg4 {[%clk 0:02:02]}  Qe7 {[%clk 0:02:06]} 16. h4 {[%clk 0:01:49]}  f5 {[%clk 0:02:02]} 17. Qf3 {[%clk 0:01:38]}  cxd4 {[%clk 0:02:01]} 18. h5 {[%clk 0:01:35]}  Kg7 {[%clk 0:01:46]} 19. hxg6 {[%clk 0:01:32]}  Rh8 {[%clk 0:01:45]} 20. Qh5 {[%clk 0:01:27]}  Kf8 {[%clk 0:01:45]} 21. g7+ {[%clk 0:01:21]}  Qxg7 {[%clk 0:01:37]} 22. Nxe6+ {[%clk 0:01:21]}  Ke7 {[%clk 0:01:38]} 23. Nxg7 {[%clk 0:01:21]}  Nxc3 {[%clk 0:01:33]} 24. Nxf5+ {[%clk 0:01:21]}  Ke6 {[%clk 0:01:33]} 25. Qg6+ {[%clk 0:01:15]}  Kd5 {[%clk 0:01:33]} 26. Qd6+ {[%clk 0:01:14]}  Ke4 {[%clk 0:01:33]} 27. Ng3# {[%clk 0:01:14]} 1-0


[Site "https://www.chess.com"]

[Event "Titled Tuesday Blitz May 10 Early 2022"]
[White "Taboas Rodriguez, Daniel"]
[Black "Xiong, Jeffery"]
[WhiteFideId "2208466"]
[BlackFideId "2047640"]
[WhiteElo "2429"]
[BlackElo "2727"]
[Result "0-1"]
[Round "01"]
[TimeControl "180+1"]
[Date "2022.05.10"]
[WhiteClock "0:01:24"]
[BlackClock "0:02:24"]

1. d4 {[%clk 0:02:59]}  Nf6 {[%clk 0:02:59]} 2. Nf3 {[%clk 0:02:59]}  d5 {[%clk 0:02:59]} 3. c4 {[%clk 0:02:59]}  e6 {[%clk 0:03:00]} 4. Bg5 {[%clk 0:02:59]}  dxc4 {[%clk 0:02:59]} 5. e4 {[%clk 0:02:51]}  b5 {[%clk 0:02:58]} 6. a4 {[%clk 0:02:51]}  c6 {[%clk 0:02:58]} 7. Nc3 {[%clk 0:02:48]}  a6 {[%clk 0:02:54]} 8. axb5 {[%clk 0:02:45]}  cxb5 {[%clk 0:02:54]} 9. Nxb5 {[%clk 0:02:43]}  axb5 {[%clk 0:02:55]} 10. Rxa8 {[%clk 0:02:42]}  Bb7 {[%clk 0:02:56]} 11. Ra1 {[%clk 0:02:18]}  h6 {[%clk 0:02:55]} 12. Bxf6 {[%clk 0:02:15]}  Bb4+ {[%clk 0:02:55]} 13. Nd2 {[%clk 0:02:13]}  Qxf6 {[%clk 0:02:55]} 14. e5 {[%clk 0:02:08]}  Qf4 {[%clk 0:02:55]} 15. Qc2 {[%clk 0:01:51]}  Qxd4 {[%clk 0:02:52]} 16. Be2 {[%clk 0:01:41]}  Be4 {[%clk 0:02:25]} 17. Qc1 {[%clk 0:01:24]}  O-O {[%clk 0:02:24]} 0-1


[Site "https://www.chess.com"]

[Event "Titled Tuesday Blitz May 10 Early 2022"]
[White "Tania, Sachdev"]
[Black "Carlsen, Magnus"]
[WhiteFideId "5007844"]
[BlackFideId "1503014"]
[WhiteElo "2280"]
[BlackElo "2832"]
[Result "0-1"]
[Round "01"]
[TimeControl "180+1"]
[Date "2022.05.10"]
[WhiteClock "0:00:07"]
[BlackClock "0:02:01"]

1. d4 {[%clk 0:02:57]}  b6 {[%clk 0:02:58]} 2. c4 {[%clk 0:02:57]}  Bb7 {[%clk 0:02:59]} 3. Nf3 {[%clk 0:02:57]}  e6 {[%clk 0:02:58]} 4. g3 {[%clk 0:02:50]}  Bb4+ {[%clk 0:02:57]} 5. Bd2 {[%clk 0:02:47]}  Bxf3 {[%clk 0:02:53]} 6. exf3 {[%clk 0:02:47]}  Bxd2+ {[%clk 0:02:53]} 7. Qxd2 {[%clk 0:02:45]}  d5 {[%clk 0:02:52]} 8. Nc3 {[%clk 0:02:34]}  Ne7 {[%clk 0:02:50]} 9. cxd5 {[%clk 0:02:04]}  exd5 {[%clk 0:02:49]} 10. Bb5+ {[%clk 0:01:59]}  c6 {[%clk 0:02:49]} 11. Bd3 {[%clk 0:01:59]}  O-O {[%clk 0:02:49]} 12. O-O {[%clk 0:01:59]}  Nd7 {[%clk 0:02:49]} 13. Rfe1 {[%clk 0:01:57]}  Re8 {[%clk 0:02:49]} 14. Rac1 {[%clk 0:01:56]}  Nf8 {[%clk 0:02:48]} 15. f4 {[%clk 0:01:51]}  Qd7 {[%clk 0:02:47]} 16. Bf1 {[%clk 0:01:43]}  Rad8 {[%clk 0:02:41]} 17. b4 {[%clk 0:01:28]}  b5 {[%clk 0:02:39]} 18. a4 {[%clk 0:01:27]}  a6 {[%clk 0:02:39]} 19. Qd3 {[%clk 0:01:22]}  Nc8 {[%clk 0:02:37]} 20. Nb1 {[%clk 0:01:19]}  Nb6 {[%clk 0:02:27]} 21. axb5 {[%clk 0:01:17]}  axb5 {[%clk 0:02:27]} 22. Nd2 {[%clk 0:01:15]}  Qd6 {[%clk 0:02:26]} 23. Rxe8 {[%clk 0:01:10]}  Rxe8 {[%clk 0:02:27]} 24. Nf3 {[%clk 0:01:10]}  Nc4 {[%clk 0:02:26]} 25. Qc3 {[%clk 0:00:57]}  Ra8 {[%clk 0:02:25]} 26. Ne5 {[%clk 0:00:48]}  g6 {[%clk 0:02:23]} 27. f5 {[%clk 0:00:34]}  gxf5 {[%clk 0:02:20]} 28. Nxc4 {[%clk 0:00:29]}  dxc4 {[%clk 0:02:17]} 29. Qf3 {[%clk 0:00:27]}  Qd5 {[%clk 0:02:14]} 30. Qf4 {[%clk 0:00:25]}  Ne6 {[%clk 0:02:14]} 31. Qh4 {[%clk 0:00:18]}  Qxd4 {[%clk 0:02:14]} 32. Qh3 {[%clk 0:00:15]}  Ra2 {[%clk 0:02:12]} 33. Qxf5 {[%clk 0:00:14]}  Qd5 {[%clk 0:02:03]} 34. Qg4+ {[%clk 0:00:14]}  Qg5 {[%clk 0:02:03]} 35. Qxg5+ {[%clk 0:00:14]}  Nxg5 {[%clk 0:02:03]} 36. Bg2 {[%clk 0:00:15]}  Rb2 {[%clk 0:02:00]} 37. Bxc6 {[%clk 0:00:14]}  Nh3+ {[%clk 0:02:00]} 38. Kg2 {[%clk 0:00:12]}  Nxf2 {[%clk 0:02:00]} 39. Kf3 {[%clk 0:00:12]}  Nd3 {[%clk 0:02:01]} 40. Ra1 {[%clk 0:00:07]}  Ne5+ {[%clk 0:02:01]} 0-1


[Site "https://www.chess.com"]

[Event "Titled Tuesday Blitz May 10 Early 2022"]
[White "Tatarinov, Dmitry"]
[Black "Tymrakiewicz, Rafal"]
[WhiteFideId "24160067"]
[BlackFideId "1108832"]
[WhiteElo "2302"]
[BlackElo "2205"]
[Result "0-1"]
[Round "01"]
[TimeControl "180+1"]
[Date "2022.05.11"]
[WhiteClock "0:01:25"]
[BlackClock "0:01:22"]

1. d4 {[%clk 0:02:58]}  Nf6 {[%clk 0:02:59]} 2. c4 {[%clk 0:02:58]}  g6 {[%clk 0:02:59]} 3. Nf3 {[%clk 0:02:58]}  Bg7 {[%clk 0:02:59]} 4. g3 {[%clk 0:02:59]}  O-O {[%clk 0:02:58]} 5. Bg2 {[%clk 0:03:00]}  d6 {[%clk 0:02:58]} 6. O-O {[%clk 0:02:54]}  Nc6 {[%clk 0:02:58]} 7. Nc3 {[%clk 0:02:54]}  Bg4 {[%clk 0:02:57]} 8. d5 {[%clk 0:02:52]}  Bxf3 {[%clk 0:02:54]} 9. exf3 {[%clk 0:02:50]}  Na5 {[%clk 0:02:46]} 10. Qe2 {[%clk 0:02:44]}  c5 {[%clk 0:02:45]} 11. Bd2 {[%clk 0:02:35]}  a6 {[%clk 0:02:39]} 12. Rfe1 {[%clk 0:02:33]}  Nd7 {[%clk 0:02:37]} 13. Qxe7 {[%clk 0:02:29]}  Nxc4 {[%clk 0:02:34]} 14. Bg5 {[%clk 0:02:20]}  Qxe7 {[%clk 0:02:08]} 15. Bxe7 {[%clk 0:02:15]}  Rfe8 {[%clk 0:01:58]} 16. Rac1 {[%clk 0:01:51]}  Nde5 {[%clk 0:01:56]} 17. Bf1 {[%clk 0:01:42]}  Nxf3+ {[%clk 0:01:34]} 18. Kg2 {[%clk 0:01:41]}  Nxe1+ {[%clk 0:01:34]} 19. Rxe1 {[%clk 0:01:42]}  Nxb2 {[%clk 0:01:24]} 20. Na4 {[%clk 0:01:25]}  Nxa4 {[%clk 0:01:22]} 0-1


[Site "https://www.chess.com"]

[Event "Titled Tuesday Blitz May 10 Early 2022"]
[White "Thomas, Anysia"]
[Black "Bellissimo, Joseph F."]
[WhiteFideId "670472"]
[BlackFideId "2609843"]
[WhiteElo "2002"]
[BlackElo "2061"]
[Result "0-1"]
[Round "01"]
[TimeControl "180+1"]
[Date "2022.05.11"]
[WhiteClock "0:00:04"]
[BlackClock "0:01:21"]

1. d4 {[%clk 0:02:47]}  Nf6 {[%clk 0:02:59]} 2. c4 {[%clk 0:02:42]}  e6 {[%clk 0:02:59]} 3. Nf3 {[%clk 0:02:41]}  d5 {[%clk 0:02:57]} 4. g3 {[%clk 0:02:41]}  Bb4+ {[%clk 0:02:57]} 5. Nbd2 {[%clk 0:02:38]}  O-O {[%clk 0:02:56]} 6. Bg2 {[%clk 0:02:38]}  c5 {[%clk 0:02:52]} 7. cxd5 {[%clk 0:02:38]}  cxd4 {[%clk 0:02:50]} 8. Nxd4 {[%clk 0:02:37]}  Nxd5 {[%clk 0:02:49]} 9. O-O {[%clk 0:02:37]}  b6 {[%clk 0:02:38]} 10. N2f3 {[%clk 0:02:31]}  Bb7 {[%clk 0:02:38]} 11. Bg5 {[%clk 0:02:29]}  Be7 {[%clk 0:02:35]} 12. Bxe7 {[%clk 0:02:21]}  Qxe7 {[%clk 0:02:36]} 13. Rc1 {[%clk 0:02:17]}  Na6 {[%clk 0:02:34]} 14. a3 {[%clk 0:02:13]}  Rac8 {[%clk 0:02:33]} 15. Ne5 {[%clk 0:02:02]}  Qd6 {[%clk 0:02:21]} 16. f4 {[%clk 0:01:51]}  Ne3 {[%clk 0:02:15]} 17. Bxb7 {[%clk 0:01:39]}  Nxd1 {[%clk 0:02:15]} 18. Rcxd1 {[%clk 0:01:39]}  Nc5 {[%clk 0:01:59]} 19. Bxc8 {[%clk 0:01:28]}  Rxc8 {[%clk 0:01:59]} 20. Ndc6 {[%clk 0:01:22]}  Qc7 {[%clk 0:01:56]} 21. b4 {[%clk 0:01:21]}  f6 {[%clk 0:01:52]} 22. bxc5 {[%clk 0:01:03]}  fxe5 {[%clk 0:01:51]} 23. Nxe5 {[%clk 0:01:03]}  Qxc5+ {[%clk 0:01:50]} 24. Kg2 {[%clk 0:01:04]}  h6 {[%clk 0:01:48]} 25. Rf3 {[%clk 0:00:57]}  Qc2 {[%clk 0:01:46]} 26. Re1 {[%clk 0:00:44]}  Rc3 {[%clk 0:01:45]} 27. Rf2 {[%clk 0:00:39]}  Rxa3 {[%clk 0:01:42]} 28. e4 {[%clk 0:00:35]}  Qc5 {[%clk 0:01:32]} 29. Ree2 {[%clk 0:00:24]}  Ra1 {[%clk 0:01:31]} 30. Rc2 {[%clk 0:00:16]}  Qd4 {[%clk 0:01:23]} 31. Rc8+ {[%clk 0:00:11]}  Kh7 {[%clk 0:01:23]} 32. Nf3 {[%clk 0:00:07]}  Qxe4 {[%clk 0:01:21]} 33. h4 {[%clk 0:00:04]}  Qb1 {[%clk 0:01:21]} 0-1


[Site "https://www.chess.com"]